fUST/lending_fUST_20251030
["ID","MTS","AMOUNT","RATE_DAILY","PERIOD"]
[392695460,1761829832249,-150.0,0.00025376,2]
[392695461,1761829832258,-177.0,0.00027376,2]
[392695462,1761829832267,-204.0,0.00029376,2]
[392695463,1761829832276,-600.0,0.000301,2]
[392695464,1761829832285,-500.0,0.00030107,4]
[392695465,1761829832294,-500.0,0.00030109,4]
[392695466,1761829832302,-3000.0,0.0003011,2]
[392695467,1761829832311,-400.0,0.00030116,2]
[392695468,1761829832321,-500.0,0.00030117,2]
[392695469,1761829832330,-500.0,0.00030117,2]
[392695470,1761829832338,-500.0,0.00030117,2]
[392695471,1761829832348,-500.0,0.00030117,2]
[392695472,1761829832356,-500.0,0.00030117,2]
[392695473,1761829832365,-500.0,0.00030117,2]
[392695474,1761829832392,-500.0,0.00030117,2]
[392695475,1761829832400,-500.0,0.00030117,2]
[392695476,1761829832409,-500.0,0.00030117,2]
[392695477,1761829832418,-500.0,0.00030117,2]
[392695478,1761829832427,-419.6075503,0.00030117,2]
[392695479,1761829832435,-500.0,0.00030117,2]
[392695480,1761829832444,-500.0,0.00030117,2]
[392695481,1761829832453,-500.0,0.00030117,2]
[392695482,1761829832461,-500.0,0.00030117,2]
[392695483,1761829832470,-500.0,0.00030117,2]
[392695484,1761829832479,-500.0,0.00030117,2]
[392695485,1761829832488,-500.0,0.00030117,2]
[392695487,1761829832497,-43.97302752,0.00030117,2]
[392695489,1761829832508,-456.02697248,0.00030117,2]
[392695491,1761829832516,-634.86342708,0.00030117,2]
[392695493,1761829832525,-300.0,0.00030117,2]
[392695495,1761829832534,-500.0,0.00030117,2]
[392695497,1761829832543,-500.0,0.00030117,2]
[392695499,1761829832552,-462.31137231,0.00030117,2]
[392695501,1761829832561,-510.70135928,0.00030117,2]
[392695503,1761829832570,-364.03261731,0.00030117,2]
[392695505,1761829832579,-500.0,0.00030117,2]
[392695507,1761829832588,-500.0,0.00030117,2]
[392695509,1761829832598,-6110.06425154,0.00030118,2]
[392695511,1761829832609,-555.11056296,0.00030118,2]
[392695513,1761829832620,-6239.30974521,0.00030118,2]
[392695521,1761829832802,-1164.91295519,0.00030118,2]
[392695572,1761829838198,-10749.27733104,0.00030118,2]
[392695573,1761829838255,-2187.63,0.00030118,2]
[392695587,1761829840428,-489.97321258,0.00030118,2]
[392695614,1761829843367,-1085.0,0.00030118,2]
[392695615,1761829843381,-2355.34642839,0.00030118,2]
[392695616,1761829843391,-3000.0,0.0003012,2]
[392695617,1761829843401,-1799.1051385,0.0003013,3]
[392695618,1761829843478,-1200.8948615,0.0003013,3]
[392695620,1761829843487,-2249.99248475,0.0003014,3]
[392695629,1761829846496,-750.00751525,0.0003014,3]
[392695631,1761829846506,-3000.0,0.0003015,3]
[392695632,1761829846515,-3000.0,0.0003016,3]
[392695633,1761829846524,-3000.0,0.0003017,3]
[392695634,1761829846532,-4751.535607,0.0003018,3]
[392695635,1761829846541,-500.0,0.0003035,5]
[392695636,1761829846551,-500.0,0.0003035,5]
[392695637,1761829846560,-501.17308663,0.000304,5]
[392695638,1761829846570,-1198.77125024,0.0003047,2]
[392695639,1761829846583,-300.0,0.00030721,30]
[392695640,1761829846592,-300.0,0.00030721,30]
[392695641,1761829846600,-300.0,0.00030721,30]
[392695642,1761829846610,-300.0,0.00030721,30]
[392695643,1761829846619,-300.0,0.00030721,30]
[392695644,1761829846628,-300.0,0.00030721,30]
[392695645,1761829846637,-300.0,0.00030721,30]
[392695646,1761829846646,-300.0,0.00030721,30]
[392695647,1761829846655,-300.0,0.00030721,30]
[392695648,1761829846665,-300.0,0.00030721,30]
[392695649,1761829846674,-300.0,0.00030721,30]
[392695650,1761829846683,-300.0,0.00030721,30]
[392695651,1761829846692,-300.0,0.00030721,30]
[392695652,1761829846701,-300.0,0.00030721,30]
[392695653,1761829846711,-300.0,0.00030721,30]
[392695654,1761829846720,-500.0,0.00030721,30]
[392695655,1761829846728,-462.56313282,0.00030898,5]
[392695656,1761829846737,-136.52026889,0.00030898,5]
[392695724,1761830910265,7676.11421106,0.00025,15]
[392695725,1761830910289,10000.01,0.00025,15]
[392695726,1761830910312,10000.01,0.00025,15]
[392695727,1761830910336,1276.27528298,0.00025,15]
[392695733,1761830923521,8723.73471702,0.00024142,2]
[392695734,1761830923542,4753.2260448,0.00024142,2]
[392695735,1761830960271,-150.0,0.00025291,2]
[392695736,1761830960294,-177.0,0.00027291,2]
[392695737,1761830960315,-204.0,0.00029291,2]
[392695738,1761830960339,-2001.0,0.00030072,2]
[392695739,1761830960361,-270.6505874,0.00030194,2]
[392695740,1761830960380,-2001.0,0.00030277,2]
[392695741,1761830960400,-1079.02597687,0.0003047,2]
[392695742,1761830960424,-300.0,0.00030718,30]
[392695743,1761830960446,-300.0,0.00030718,30]
[392695744,1761830960470,-300.0,0.00030718,30]
[392695745,1761830960494,-300.0,0.00030718,30]
[392695746,1761830960516,-300.0,0.00030718,30]
[392695747,1761830960536,-300.0,0.00030718,30]
[392695748,1761830960556,-300.0,0.00030718,30]
[392695749,1761830960577,-300.0,0.00030718,30]
[392695750,1761830960598,-300.0,0.00030718,30]
[392695751,1761830960619,-300.0,0.00030718,30]
[392695752,1761830960642,-300.0,0.00030718,30]
[392695753,1761830960663,-300.0,0.00030718,30]
[392695754,1761830960686,-300.0,0.00030718,30]
[392695755,1761830960710,-300.0,0.00030718,30]
[392695756,1761830960732,-300.0,0.00030718,30]
[392695757,1761830960752,-700.0,0.000311,3]
[392695758,1761830960777,-231.0,0.00031291,2]
[392695759,1761830960799,-600.0,0.00031331,30]
[392695760,1761830960819,-797.0,0.000321,4]
[392695761,1761830960842,-557.6973109,0.00032243,30]
[392695762,1761830960864,-1079.02597687,0.00032281,2]
[392695763,1761830960886,-200.0,0.00032487,15]
[392695764,1761830960906,-390.328024,0.00032886,2]
[392695765,1761830960929,-1134.06260012,0.00033,7]
[392695766,1761830960948,-2841.9898085,0.00033029,2]
[392695767,1761830960967,-213.785345,0.00033165,2]
[392695768,1761830960987,-258.0,0.00033291,120]
[392695769,1761830961007,-999.0,0.00033504,2]
[392695770,1761830961026,-1079.02597687,0.00034092,3]
[392695771,1761830961047,-720.0,0.00034464,30]
[392695772,1761830961071,-285.0,0.00035291,120]
[392695773,1761830961092,-1079.02597687,0.00035903,3]
[392695774,1761830961112,-312.0,0.00037291,120]
[392695775,1761830961132,-500.0,0.00037399,2]
[392695776,1761830961150,-2000.0,0.000374,19]
[392695777,1761830961173,-431.27392154,0.00037614,2]
[392695778,1761830961195,-151.0,0.00037677,2]
[392695779,1761830961217,-151.0,0.00037677,2]
[392695780,1761830961239,-151.0,0.00037677,2]
[392695781,1761830961259,-151.0,0.00037677,2]
[392695782,1761830961279,-151.0,0.00037677,2]
[392695783,1761830961298,-151.0,0.00037677,2]
[392695784,1761830961318,-151.0,0.00037677,2]
[392695785,1761830961338,-151.0,0.00037677,2]
[392695786,1761830961358,-151.0,0.00037677,2]
[392695787,1761830961379,-151.0,0.00037677,2]
[392695788,1761830961399,-151.0,0.00037677,2]
[392695789,1761830961420,-151.0,0.00037677,2]
[392695790,1761830961440,-151.0,0.00037677,2]
[392695791,1761830961460,-151.0,0.00037677,2]
[392695792,1761830961481,-151.0,0.00037677,2]
[392695793,1761830961501,-151.0,0.00037677,2]
[392695794,1761830961521,-151.0,0.00037677,2]
[392695795,1761830961540,-151.0,0.00037677,2]
[392695796,1761830961560,-151.0,0.00037677,2]
[392695797,1761830961580,-151.0,0.00037677,2]
[392695798,1761830961601,-235.09,0.0003769,10]
[392695799,1761830961623,-508.54096863,0.00037699,15]
[392695800,1761830961643,-500.0,0.00037699,15]
[392695801,1761830961663,-227.41156257,0.00037699,15]
[392695802,1761830961683,-515.52451815,0.00037699,15]
[392695803,1761830961703,-162.47904137,0.00037699,15]
[392695804,1761830961724,-500.0,0.00037699,2]
[392695805,1761830961745,-200.0,0.00037699,15]
[392695806,1761830961768,-500.0,0.00037699,15]
[392695807,1761830961790,-500.0,0.00037699,15]
[392695808,1761830961812,-500.0,0.00037699,2]
[392695809,1761830961832,-337.72585781,0.00037699,15]
[392695810,1761830961853,-592.66379972,0.00037699,15]
[392695811,1761830961873,-493.81471089,0.00037699,2]
[392695812,1761830961894,-500.0,0.00037699,2]
[392695813,1761830961916,-500.0,0.00037699,2]
[392695814,1761830961934,-500.0,0.00037699,2]
[392695815,1761830961955,-500.0,0.00037699,2]
[392695816,1761830961975,-500.0,0.00037699,2]
[392695817,1761830961995,-500.0,0.00037699,2]
[392695818,1761830962014,-500.0,0.00037699,2]
[392695819,1761830962034,-500.0,0.00037699,2]
[392695820,1761830962053,-500.0,0.00037699,2]
[392695821,1761830962074,-14877.88216313,0.000377,2]
[392695822,1761830962197,-17007.97071484,0.000377,2]
[392695887,1761831038406,-200.0,0.000355,30]
[392695888,1761831038420,-150.09193184,0.00037614,120]
[392695889,1761831038431,-151.0,0.00037677,2]
[392695892,1761831038441,-151.0,0.00037677,2]
[392695894,1761831038452,-151.0,0.00037677,2]
[392695896,1761831038462,-151.0,0.00037677,2]
[392695898,1761831038472,-151.0,0.00037677,2]
[392695900,1761831038482,-151.0,0.00037677,2]
[392695902,1761831038492,-151.0,0.00037677,2]
[392695904,1761831038501,-151.0,0.00037677,2]
[392695906,1761831038511,-151.0,0.00037677,2]
[392695909,1761831038520,-151.0,0.00037677,2]
[392695912,1761831038530,-151.0,0.00037677,2]
[392695915,1761831038540,-151.0,0.00037677,2]
[392695918,1761831038554,-151.0,0.00037677,2]
[392695921,1761831038564,-151.0,0.00037677,2]
[392695924,1761831038573,-151.0,0.00037677,2]
[392695927,1761831038583,-151.0,0.00037677,2]
[392695930,1761831038592,-151.0,0.00037677,2]
[392695933,1761831038602,-151.0,0.00037677,2]
[392695935,1761831038612,-151.0,0.00037677,2]
[392695937,1761831038623,-151.0,0.00037677,2]
[392695939,1761831038632,-62331.28623704,0.000377,2]
[392695942,1761831038650,-3820.09999984,0.000377,2]
[392696075,1761831044906,-18749.999997,0.000377,2]
[392696091,1761831047070,-3924.64822196,0.000377,2]
[392696092,1761831047080,-1805.64300152,0.000377,2]
[392696099,1761831464918,199.532989,0.00013699,2]
[392696100,1761831465131,199.532989,0.00020187,2]
[392696109,1761831568965,4847.7179772,0.00025205,2]
[392696110,1761831568987,152.2820228,0.00025205,2]
[392696111,1761831591648,988.60677641,0.00025205,2]
[392696137,1761832054136,-150.0,0.00025376,2]
[392696138,1761832054156,-122.94565884,0.00026676,2]
[392696147,1761832165145,-76.58733016,0.00026676,2]
[392696148,1761832165165,-177.0,0.00027376,2]
[392696149,1761832165184,-170.102837,0.00028219,2]
[392696150,1761832165204,-204.0,0.00029376,2]
[392696151,1761832165223,-297.33154622,0.0003047,2]
[392696152,1761832165883,13067.0,0.00035499,60]
[392696203,1761832231727,-150.0,0.0002589,2]
[392696205,1761832231737,-177.0,0.0002789,2]
[392696207,1761832231747,-204.0,0.0002989,2]
[392696209,1761832231757,-628.18637852,0.0003047,2]
[392696211,1761832231767,-231.0,0.0003189,2]
[392696214,1761832231777,-400.0,0.00032276,2]
[392696216,1761832231790,-1200.0,0.00032276,3]
[392696218,1761832231800,-7818.85853302,0.00032277,2]
[392696219,1761832231813,-1342.331595,0.00032277,2]
[392696220,1761832231825,-2188.59386828,0.00032277,2]
[392696221,1761832231838,-199.532989,0.00033165,2]
[392696222,1761832231848,-925.51792474,0.00033186,2]
[392696223,1761832231858,-2677.0,0.00033186,2]
[392696224,1761832231868,-150.09193184,0.000332,117]
[392696225,1761832231878,-162.0,0.000354,90]
[392696226,1761832231888,-1000.0,0.00035499,60]
[392696227,1761832231898,-200.0,0.00035499,30]
[392696228,1761832231908,-925.51792474,0.00035903,3]
[392696229,1761832231918,-162.05401949,0.00036,120]
[392696230,1761832231929,-151.0,0.00037577,2]
[392696231,1761832231939,-151.0,0.00037577,2]
[392696232,1761832231948,-151.0,0.00037577,2]
[392696233,1761832231958,-151.0,0.00037577,2]
[392696234,1761832231968,-151.0,0.00037577,2]
[392696235,1761832231978,-151.0,0.00037577,2]
[392696236,1761832231988,-151.0,0.00037577,2]
[392696237,1761832231999,-151.0,0.00037577,2]
[392696238,1761832232009,-151.0,0.00037577,2]
[392696239,1761832232019,-151.0,0.00037577,2]
[392696240,1761832232029,-151.0,0.00037577,2]
[392696241,1761832232039,-151.0,0.00037577,2]
[392696243,1761832232049,-151.0,0.00037577,2]
[392696245,1761832232059,-151.0,0.00037577,2]
[392696247,1761832232069,-151.0,0.00037577,2]
[392696249,1761832232080,-151.0,0.00037577,2]
[392696251,1761832232091,-151.0,0.00037577,2]
[392696253,1761832232101,-151.0,0.00037577,2]
[392696255,1761832232111,-29.97574858,0.00037577,2]
[392696257,1761832232123,-121.02425142,0.00037577,2]
[392696258,1761832232133,-151.0,0.00037577,2]
[392696259,1761832232294,-648.59,0.0003759,10]
[392696260,1761832232306,-1236.81,0.0003759,10]
[392696261,1761832232315,-1030.67,0.0003759,10]
[392696262,1761832232324,-858.89,0.0003759,10]
[392696263,1761832232336,-159.1880938,0.00037599,15]
[392696264,1761832232346,-500.0,0.00037599,15]
[392696265,1761832232356,-210.8671627,0.00037599,15]
[392696266,1761832232366,-878.53595083,0.000376,2]
[392696267,1761832232378,-560.16633354,0.000376,2]
[392696268,1761832232389,-7278.27211905,0.000376,2]
[392696269,1761832232400,-107678.8920346,0.000376,2]
[392696270,1761832232411,-351.49724853,0.000376,2]
[392696314,1761832237627,-306.017431,0.000376,2]
[392696316,1761832237638,-37399.99998171,0.000376,2]
[392696332,1761832237783,-13762.55941581,0.000376,2]
[392696481,1761832242846,-285.52929774,0.000376,2]
[392696489,1761832245954,-715.75,0.0003759,10]
[392696490,1761832245964,-613.11,0.0003759,3]
[392696491,1761832245973,-834.01946472,0.000376,2]
[392696493,1761832471203,150.0,0.00012424,30]
[392696494,1761832471640,150.0,0.00013554,30]
[392696495,1761832472060,150.0,0.00014683,30]
[392696496,1761832472477,150.0,0.00015813,30]
[392696497,1761832545134,150.0,0.00014413,30]
[392696498,1761832545718,150.0,0.00015723,30]
[392696499,1761832546117,150.0,0.00017033,30]
[392696501,1761832683076,150.0,0.00013537,30]
[392696502,1761832753076,150.0,0.0001347,30]
[392696520,1761833253178,-150.0,0.00025376,2]
[392696521,1761833253198,-24.87740891,0.00027376,2]
[392696522,1761833280735,154.61,0.00016983,31]
[392696599,1761833431955,-152.12259109,0.00027376,2]
[392696600,1761833431967,-234.375,0.0002879,2]
[392696601,1761833431979,-200.0,0.0002879,2]
[392696602,1761833431990,-204.0,0.00029376,2]
[392696604,1761833432004,-234.375,0.00029443,17]
[392696605,1761833432015,-234.375,0.00030095,32]
[392696606,1761833432025,-360.79,0.00030107,4]
[392696608,1761833432036,-269.0,0.00030172,2]
[392696610,1761833432047,-1600.0,0.00030172,2]
[392696613,1761833432059,-50000.0,0.00030173,2]
[392696615,1761833432070,-500.0,0.00030173,5]
[392696617,1761833432082,-500.59643271,0.00030173,5]
[392696619,1761833432094,-500.8550866,0.00030173,5]
[392696621,1761833432106,-504.72844813,0.00030173,5]
[392696623,1761833432118,-481.56779637,0.00030173,5]
[392696625,1761833432130,-500.0,0.00030173,5]
[392696628,1761833432141,-500.0,0.00030173,5]
[392696630,1761833432156,-500.43641249,0.00030173,5]
[392696632,1761833432169,-500.0,0.00030173,5]
[392696634,1761833432182,-500.0,0.00030173,5]
[392696637,1761833432195,-500.0,0.00030173,5]
[392696639,1761833432208,-18521.7564288,0.00030188,2]
[392696641,1761833432219,-151.0,0.0003019,2]
[392696643,1761833432231,-151.0,0.0003019,2]
[392696646,1761833432241,-151.0,0.0003019,2]
[392696648,1761833432252,-151.0,0.0003019,2]
[392696650,1761833432262,-151.0,0.0003019,2]
[392696653,1761833432272,-151.0,0.0003019,2]
[392696655,1761833432282,-151.0,0.0003019,2]
[392696657,1761833432294,-151.0,0.0003019,2]
[392696659,1761833432305,-151.0,0.0003019,2]
[392696661,1761833432318,-151.0,0.0003019,2]
[392696663,1761833432329,-151.0,0.0003019,2]
[392696666,1761833432341,-151.0,0.0003019,2]
[392696668,1761833432350,-151.0,0.0003019,2]
[392696670,1761833432360,-151.0,0.0003019,2]
[392696672,1761833432370,-151.0,0.0003019,2]
[392696674,1761833432382,-151.0,0.0003019,2]
[392696676,1761833432393,-151.0,0.0003019,2]
[392696678,1761833432403,-151.0,0.0003019,2]
[392696680,1761833432414,-151.0,0.0003019,2]
[392696683,1761833432425,-151.0,0.0003019,2]
[392696685,1761833432434,-500.0,0.00030195,2]
[392696687,1761833432444,-500.0,0.00030195,2]
[392696689,1761833432454,-405.33028588,0.00030195,2]
[392696691,1761833432463,-500.0,0.00030195,2]
[392696693,1761833432474,-500.0,0.00030196,2]
[392696695,1761833432485,-614.22396037,0.00030196,2]
[392696697,1761833432496,-500.0,0.00030196,2]
[392696699,1761833432507,-500.0,0.00030196,2]
[392696702,1761833432521,-500.0,0.00030196,2]
[392696704,1761833432532,-500.0,0.00030196,2]
[392696706,1761833432543,-387.33544453,0.00030196,2]
[392696708,1761833432553,-500.0,0.00030196,2]
[392696710,1761833432564,-500.0,0.00030196,2]
[392696712,1761833432575,-433.37471963,0.00030196,2]
[392696715,1761833432587,-500.0,0.00030196,2]
[392696717,1761833432603,-169.69809853,0.00030196,2]
[392696719,1761833432614,-500.0,0.00030196,2]
[392696721,1761833432624,-500.0,0.00030196,2]
[392696724,1761833432636,-500.0,0.00030196,2]
[392696726,1761833432646,-557.17746053,0.00030196,2]
[392696728,1761833432657,-500.0,0.00030196,2]
[392696730,1761833432668,-500.0,0.00030196,2]
[392696732,1761833432679,-500.0,0.00030196,2]
[392696734,1761833432690,-500.0,0.00030196,2]
[392696737,1761833432701,-500.0,0.00030196,2]
[392696738,1761833432712,-500.0,0.00030196,2]
[392696740,1761833432723,-500.0,0.00030196,2]
[392696742,1761833432734,-500.0,0.00030196,2]
[392696744,1761833432749,-500.0,0.00030196,2]
[392696746,1761833432760,-500.0,0.00030196,2]
[392696748,1761833432771,-500.0,0.00030196,2]
[392696750,1761833432782,-500.0,0.00030196,2]
[392696752,1761833432792,-500.0,0.00030196,2]
[392696753,1761833432803,-500.0,0.00030196,2]
[392696754,1761833432814,-500.0,0.00030196,2]
[392696755,1761833432825,-500.0,0.00030196,2]
[392696756,1761833432836,-500.0,0.00030196,2]
[392696757,1761833432847,-500.0,0.00030196,2]
[392696758,1761833432857,-500.0,0.00030196,2]
[392696759,1761833432869,-500.0,0.00030196,2]
[392696760,1761833432879,-500.0,0.00030196,2]
[392696761,1761833432890,-500.0,0.00030196,2]
[392696762,1761833432901,-500.0,0.00030196,2]
[392696763,1761833432912,-500.0,0.00030196,2]
[392696764,1761833432923,-500.0,0.00030196,2]
[392696765,1761833432935,-500.0,0.00030196,2]
[392696767,1761833432946,-500.0,0.00030196,2]
[392696768,1761833432958,-203.82939642,0.00030196,2]
[392696769,1761833432970,-500.0,0.00030196,2]
[392696770,1761833432982,-500.0,0.00030196,2]
[392696771,1761833432992,-500.0,0.00030196,2]
[392696772,1761833433003,-500.0,0.00030196,2]
[392696773,1761833433013,-500.0,0.00030196,2]
[392696774,1761833433023,-500.0,0.00030196,2]
[392696775,1761833433043,-500.0,0.00030196,2]
[392696776,1761833433241,-500.0,0.00030196,2]
[392696777,1761833433258,-500.0,0.00030196,2]
[392696778,1761833433269,-500.0,0.00030196,2]
[392696779,1761833433279,-500.0,0.00030196,2]
[392696780,1761833433288,-500.0,0.00030196,2]
[392696781,1761833433298,-320.33844166,0.00030196,2]
[392696782,1761833433307,-500.0,0.00030196,2]
[392696783,1761833433318,-500.0,0.00030196,2]
[392696784,1761833433327,-500.0,0.00030196,2]
[392696785,1761833433337,-500.0,0.00030196,2]
[392696786,1761833433347,-500.0,0.00030196,2]
[392696787,1761833433356,-500.0,0.00030196,2]
[392696788,1761833433366,-500.0,0.00030196,2]
[392696789,1761833433375,-500.0,0.00030196,2]
[392696790,1761833433385,-500.0,0.00030196,2]
[392696791,1761833433395,-500.0,0.00030196,2]
[392696792,1761833433404,-500.0,0.00030196,2]
[392696793,1761833433414,-500.0,0.00030196,2]
[392696794,1761833433423,-500.0,0.00030196,2]
[392696795,1761833433432,-500.0,0.00030196,2]
[392696796,1761833433442,-500.0,0.00030196,2]
[392696797,1761833433451,-500.0,0.00030196,2]
[392696798,1761833433461,-500.0,0.00030196,2]
[392696799,1761833433470,-500.0,0.00030196,2]
[392696800,1761833433480,-500.0,0.00030196,2]
[392696801,1761833433489,-500.0,0.00030196,2]
[392696802,1761833433501,-500.0,0.00030196,2]
[392696803,1761833433510,-408.08513087,0.00030196,2]
[392696804,1761833433520,-500.0,0.00030196,2]
[392696805,1761833433530,-500.0,0.00030196,2]
[392696806,1761833433540,-500.0,0.00030196,2]
[392696807,1761833433550,-500.0,0.00030196,2]
[392696808,1761833433560,-500.0,0.00030196,2]
[392696809,1761833433572,-500.0,0.00030196,2]
[392696810,1761833433582,-300.0,0.00030196,2]
[392696811,1761833433592,-151.0,0.00030196,31]
[392696812,1761833433603,-151.0,0.00030196,31]
[392696813,1761833433612,-301.528502,0.00030197,31]
[392696814,1761833433622,-151.0,0.00030197,31]
[392696815,1761833433632,-3000.0,0.000302,3]
[392696816,1761833433642,-500.0,0.00030207,2]
[392696817,1761833433651,-151.0,0.00030207,31]
[392696818,1761833433661,-500.0,0.00030207,4]
[392696819,1761833433670,-151.0,0.00030208,31]
[392696820,1761833433680,-285.95,0.00030208,7]
[392696821,1761833433690,-151.0,0.00030208,31]
[392696822,1761833433700,-500.0,0.00030208,4]
[392696823,1761833433709,-157.819,0.00030209,25]
[392696824,1761833433719,-3000.0,0.0003021,3]
[392696825,1761833433728,-3651.387115,0.0003022,3]
[392696826,1761833433738,-500.0,0.00030273,5]
[392696827,1761833433750,-500.59540561,0.00030273,5]
[392696828,1761833433760,-500.0,0.00030273,5]
[392696829,1761833433770,-500.0,0.00030273,5]
[392696830,1761833433779,-750.85741829,0.00030336,2]
[392696831,1761833433788,-151.0,0.00030336,31]
[392696832,1761833433798,-741.00655281,0.0003047,2]
[392696833,1761833433807,-500.0,0.00030481,2]
[392696834,1761833433816,-160.0,0.00030631,2]
[392696835,1761833433825,-229.6095421,0.00030721,5]
[392696836,1761833433834,-1000.0,0.00030721,5]
[392696837,1761833433844,-1000.0,0.00030721,5]
[392696838,1761833433853,-234.375,0.00030748,48]
[392696839,1761833433863,-500.0,0.00030755,2]
[392696840,1761833433872,-409.4,0.00030811,3]
[392696841,1761833433881,-1000.0,0.00030821,5]
[392696842,1761833433891,-1000.0,0.00030821,5]
[392696843,1761833433901,-1000.0,0.00030821,5]
[392696844,1761833433911,-151.0,0.00030822,2]
[392696845,1761833433921,-151.0,0.00030822,2]
[392696846,1761833433930,-500.0,0.00030822,4]
[392696847,1761833433939,-300.0,0.00030823,30]
[392696848,1761833433949,-300.0,0.00030823,30]
[392696849,1761833433958,-300.0,0.00030823,30]
[392696850,1761833433967,-300.0,0.00030823,30]
[392696851,1761833433977,-300.0,0.00030823,30]
[392696852,1761833433987,-300.0,0.00030823,30]
[392696853,1761833433998,-300.0,0.00030823,30]
[392696854,1761833434008,-300.0,0.00030823,30]
[392696855,1761833434017,-300.0,0.00030823,30]
[392696856,1761833434028,-300.0,0.00030823,30]
[392696857,1761833434037,-300.0,0.00030823,30]
[392696858,1761833434046,-300.0,0.00030823,30]
[392696859,1761833434056,-300.0,0.00030823,30]
[392696860,1761833434065,-300.0,0.00030823,30]
[392696861,1761833434074,-300.0,0.00030823,30]
[392696862,1761833434083,-18521.7564288,0.00030867,2]
[392696863,1761833434093,-151.0,0.00030877,2]
[392696864,1761833434102,-151.0,0.00030877,2]
[392696865,1761833434111,-500.0,0.00031029,2]
[392696866,1761833434120,-260.0,0.00031179,2]
[392696867,1761833434129,-1500.0,0.00031268,5]
[392696868,1761833434138,-420.70849513,0.00031268,5]
[392696869,1761833434152,-1079.29150487,0.00031268,5]
[392696870,1761833434163,-1105.60117365,0.00031368,5]
[392696871,1761833434178,-500.0,0.00030195,2]
[392696872,1761833434187,-394.39882635,0.00031368,5]
[392696873,1761833434198,-1054.86822718,0.00031368,5]
[392696874,1761833434209,-1500.0,0.00031368,5]
[392696875,1761833434218,-58.50365286,0.00031376,2]
[392696876,1761833434251,-500.0,0.00030195,2]
[392696877,1761833434260,-478.77151243,0.00030195,2]
[392696878,1761833434272,-21.22848757,0.00030195,2]
[392696879,1761833434281,-172.49634714,0.00031376,2]
[392696880,1761833434290,-234.375,0.00031401,63]
[392696881,1761833434300,-157.75016539,0.00031816,5]
[392696882,1761833434311,-342.24983461,0.00031816,5]
[392696883,1761833434320,-700.50895005,0.00031816,5]
[392696884,1761833434329,-500.0,0.00031916,5]
[392696885,1761833434338,-234.375,0.00032054,79]
[392696886,1761833434347,-169.18,0.00032529,3]
[392696887,1761833434357,-1063.0,0.0003265,3]
[392696888,1761833434366,-234.375,0.00032707,94]
[392696889,1761833434375,-156.53,0.00032759,15]
[392696890,1761833434384,-156.53,0.00032859,15]
[392696891,1761833434393,-600.0,0.00032917,30]
[392696892,1761833434402,-507.57,0.00032939,3]
[392696893,1761833434411,-151.0,0.00032939,31]
[392696894,1761833434420,-338.36,0.00032949,3]
[392696895,1761833434429,-156.53,0.00032959,60]
[392696896,1761833434438,-156.53,0.00033059,60]